Cogmind - Beta 16 @@@ ROGUE MODE // 2026.01.28 @ 15:39:51 Player: Carter Result: Destroyed by G-47 Trooper with Particle Gun Performance ------------- Evolutions (0) 0 Regions Visited (1) 200 Robots Destroyed (10) 50 Value Destroyed (267) 267 Prototype IDs (0) 0 Alien Tech Used (0) 0 Bonus (0) 0 TOTAL SCORE: 517 Bonus ------- None Cogmind --------- Core Integrity 0/250 Matter 15/300 Energy 125/125 System Corruption 0% Temperature Cool (9) Movement Core (800) Ox15 Location -10/Materials Parts ------- > --- POWER (1) -------- Light Ion Engine > --- PROPULSION (2) --- (None) > --- UTILITY (2) ------ High-capacity Storage Unit Hardened Light Armor Plating > --- WEAPON (2) ------- (None) > --- INVENTORY (20) --- Hardened Light Armor Plating Peak State ------------ > --- POWER ------------ Light Ion Engine > --- PROPULSION ------- Light Treads > --- UTILITY ---------- Transport Network Coupler Hardened Light Armor Plating > --- WEAPON ----------- Particle Gun Particle Gun > --- INVENTORY -------- High-capacity Storage Unit Hardened Light Armor Plating Hardened Light Armor Plating [Rating: 9] Favorites ----------- Power Light Ion Engine Engine Light Ion Engine Propulsion Light Treads Treads Light Treads Utility Transport Network Coupler Storage High-capacity Storage Unit Processor Transport Network Coupler Protection Light Armor Plating Weapon Light Assault Rifle Energy Gun Particle Gun Ballistic Gun Light Assault Rifle Launcher Grenade Launcher Build | -11 -10 ------- Run | Yrd Mat Slots Evolved . | . . Power . | . . Propulsion . | . . Utility . | . . Weapon . | . . Parts Attached 15 | 5 10 Power 3 | 1 2 Engine 3 | 1 2 Core . | . . Reactor . | . . Propulsion 2 | 2 . Treads 2 | 2 . Leg . | . . Wheel . | . . Hover . | . . Flight . | . . Utility 5 | . 5 Device . | . . Storage 1 | . 1 Processor 1 | . 1 Hackware . | . . Protection 3 | . 3 Artifact . | . . Weapon 5 | 2 3 Energy Gun 2 | . 2 Energy Cannon . | . . Ballistic Gun 2 | 2 . Ballistic Cannon . | . . Launcher 1 | . 1 Special Weapon . | . . Impact Weapon . | . . Slashing Weapon . | . . Piercing Weapon . | . . Special Melee Weapon . | . . Unidentified Prototypes . | . . Parts Lost 7 | . 7 Power 1 | . 1 Propulsion 2 | . 2 Utility 1 | . 1 Weapon 3 | . 3 Highest Loss Streak 7 | . 7 To Critical Strikes . | . . Average Backups 3 | . 3 Power . | . 1 Propulsion . | . . Utility 1 | . 1 Weapon . | . . Tool/Special . | . . Unused Backups 5 | . 5 Power 1 | . 1 Propulsion . | . . Utility 3 | . 3 Weapon . | . . Tool/Special 1 | . 1 Average Slot Usage (%) 86 | . 86 Engine 13 | . 13 Treads 25 | . 25 Storage 1 | . 1 Processor 9 | . 9 Protection 10 | . 10 Energy Gun 1 | . 1 Ballistic Gun 16 | . 16 Launcher 7 | . 7 Peak Build Rating 9 | 5 9 Average Rating 6 | 4 6 On Entrance 2 | . 5 Avg Prop Armor Cover (%) . | . . Naked Turns . | . . Heaviest Build 51 | 5 51 Greatest Support 40 | 40 40 Greatest Overweight (x) 16 | 1 16 Average Overweight (x) . | . . Largest Inventory Capacity 20 | 5 20 Average Capacity 6 | 5 6 Most Carried 5 | 1 5 Average Carried 3 | . 3 Final Capacity 20 | 5 20 Final Carried 1 | 1 1 Class Distribution -------------------- 100% | Mutant Dominant Class ---------------- Mutant | -10/Materials Resources | -11 -10 ----------- Run | Yrd Mat Matter Collected 135 | 42 93 Remotely . | . . Salvage Created 220 | . 220 Parts 18 | . 18 Haulers Intercepted 1 | . 1 Recyclers Shooed . | . . Parts Field Recycled . | . . Retrieved Matter . | . . Parts Self-Destructed . | . . Prevented . | . . Parts Restored . | . . Kills | -11 -10 ------- Run | Yrd Mat Combat Hostiles Destroyed 6 | . 6 Guns 2 | . 2 AOE 4 | . 4 Classes Destroyed 4 | . 4 Worker 2 | . 2 Hauler 1 | . 1 Watcher 1 | . 1 Grunt 6 | . 6 Best Kill Streak 3 | . 3 Combat Bots Only 2 | . 2 Max Kills in Single Turn 2 | . 2 Gunslinging . | . . Exploded 1 | . 1 Melee . | . . Uniques/NPCs Destroyed . | . . Combat | -11 -10 -------- Run | Yrd Mat Hostile Shots Fired 110 | . 110 Missed 23 | . 23 Hits 87 | . 87 Projectile 87 | . 87 Critical Strikes 1 | . 1 Damage Taken 1237 | . 1237 Core 259 | . 259 Absorbed by Shields . | . . Core Remaining (%) 100 | 100 . Volleys Fired 31 | . 31 Largest 2 | . 2 Hottest 130 | . 130 Shots Fired 45 | . 45 Gun 31 | . 31 Cannon . | . . Launcher 14 | . 14 Special . | . . Kinetic 15 | . 15 Thermal 16 | . 16 Explosive 14 | . 14 Electromagnetic . | . . Robot Hit Streak 5 | . 5 Robot Miss Streak 9 | . 9 Penetration Max . | . . Secondary Targets . | . . Shots Hit Robots 26 | . 26 Core Hits 22 | . 22 Critical Kills . | . . Critical Parts Destroyed . | . . Critical Strikes . | . . Melee Attacks . | . . Impact . | . . Slashing . | . . Piercing . | . . Sneak Attacks . | . . Combat Hostiles . | . . Follow-up Attacks . | . . Damage Inflicted 752 | . 752 Guns 210 | . 210 Cannons . | . . Explosions 506 | . 506 Melee . | . . Ramming 36 | . 36 Kinetic 87 | . 87 Thermal 123 | . 123 Explosive 506 | . 506 Electromagnetic . | . . Impact . | . . Slashing . | . . Piercing . | . . Highest Corruption . | . . Average Corruption . | . . Corruption Purged . | . . Corruption Blocked . | . . Overload Shots . | . . Overflow Damage . | . . Projectiles . | . . Explosions . | . . Melee . | . . Knockbacks . | . . Impact . | . . Kinetic . | . . Secondary . | . . Self-Inflicted Damage 34 | . 34 Shots 2 | . 2 Rammed 14 | . 14 Targets Rammed 14 | . 14 Kicked . | . . Crushed . | . . Highest Temperature 321 | . 321 Average Temperature 136 | . 136 Received Heat Transfer 717 | . 717 Siege Activations . | . . Martial Activations . | . . Shielding Activations . | . . Robots Disrupted . | . . Combat Hostiles . | . . Robots Corrupted . | . . Combat Hostiles . | . . Parts Fried . | . . Impact Corruptions . | . . Robots Melted . | . . Combat Hostiles . | . . Parts Melted . | . . Heat Transferred 296 | . 296 Parts Sabotaged . | . . Parts Stolen . | . . Parts Stripped . | . . Power Chain Reactions . | . . Alert | -11 -10 ------- Run | Yrd Mat Maximum Alert Level . | . . Low Security (%) 100 | 100 100 Level 1 . | . . Level 2 . | . . Level 3 . | . . Level 4 . | . . Level 5 . | . . High Security . | . . Max Security . | . . Peak Influence 118 | . 118 Initial . | . . Average 36 | . 38 Influence Increases 318 | . 318 Destroy 0b10 Robot/C 120 | . 120 Destroy 0b10 Robot/NC 20 | . 20 Destroy Leader 24 | . 24 Disable Machine 45 | . 45 Destroy Structure 79 | . 79 Lose Combat Pursuer 30 | . 30 Influence Decreases 318 | . 318 Time Decay 248 | . 248 Lost Part 70 | . 70 Squads Dispatched 1 | . 1 Investigation 1 | . 1 Extermination . | . . Reinforcement . | . . Assault . | . . Garrison . | . . Intercept . | . . Searches Triggered . | . . Construction Impeded . | . . Haulers Reinforced . | . . Active Scanning Responses . | . . Cargo Convoy Interrupts . | . . Stealth | -11 -10 --------- Run | Yrd Mat Distress Signals 1 | . 1 Communications Jammed . | . . Distress Signals . | . . Times Spotted 14 | . 14 Peak Tracking Total 5 | . 5 Tactical Retreats 1 | . 1 Traps | -11 -10 ------- Run | Yrd Mat Traps Triggered 1 | . 1 Indirectly . | . . Trap Hack Attempts . | . . Triggered . | . . Disarmed . | . . Reprogrammed . | . . Reused . | . . Traps Extracted . | . . Installed . | . . Triggered . | . . Machines | -11 -10 ---------- Run | Yrd Mat Machines Disabled 3 | . 3 Max in Single Turn 2 | . 2 Machines Repaired . | . . Machines Dismantled . | . . Machines Sabotaged . | . . Overloaded Fab Kills . | . . Hacking | -11 -10 --------- Run | Yrd Mat Machines Accessed 1 | . 1 Terminals . | . . Fabricators . | . . Repair Stations . | . . Recycling Units 1 | . 1 Scanalyzers . | . . Garrison Access . | . . Total Hacks 3 | . 3 Successful 1 | . 1 Failed 2 | . 2 Catastrophic . | . . Database Lockouts . | . . Manual . | . . Terminals . | . . Fabricators . | . . Repair Stations . | . . Recycling Units 3 | . 3 Scanalyzers . | . . Garrison Access . | . . Terminal Hacks . | . . Fabricator Hacks . | . . Repair Station Hacks . | . . Recycling Unit Hacks 1 | . 1 Recycle Component 1 | . 1 Scanalyzer . | . . Garrison Access Hacks . | . . Unauthorized Hacks . | . . Terminals . | . . Fabricators . | . . Repair Stations . | . . Recycling Units . | . . Scanalyzers . | . . Garrison Access . | . . Data Cores Recovered . | . . Used . | . . Hacking Detections 1 | . 1 Full Trace Events . | . . Feedback Events . | . . Feedback Blocked . | . . Robot Schematics Acquired . | . . Robots Built . | . . Authchips . | . . Time . | . . Total Robot Build Rating . | . . Part Schematics Acquired . | . . Parts Built . | . . Authchips . | . . Time . | . . Total Part Build Rating . | . . Part Studies Acquired . | . . Parts Repaired . | . . Time . | . . Parts Recycled 1 | . 1 Recycled Matter . | . . Retrieved Matter . | . . Retrieved Components . | . . Parts Scanalyzed . | . . Part Schematics Acquired . | . . Parts Damaged . | . . Bothacking | -11 -10 ------------ Run | Yrd Mat Used RIF Installer . | . . Robots Hacked . | . . Non-combat . | . . Combat . | . . Robot Hacks Applied . | . . Relay Couplers Released . | . . Fabnet Peak Effective % . | . . Robots Rewired . | . . Allies Hacked . | . . Hacks Repelled . | . . Allies | -11 -10 -------- Run | Yrd Mat Total Allies . | . . Largest Group . | . . Highest-Rated Group . | . . Highest-Rated Ally . | . . Total Orders . | . . Ally Attacks . | . . Total Damage . | . . Kills . | . . Allies Corrupted . | . . Allies Melted . | . . Intel | -11 -10 ------- Run | Yrd Mat Active Infowar (turns) 592 | . 592 T.N.C. 592 | . 592 Robot Analysis Total . | . . Derelict Logs Recovered . | . . Drone Launches . | . . Drone Recoveries . | . . Exploration | -11 -10 ------------- Run | Yrd Mat Turns Passed 914 | 67 847 Spaces Moved 468 | 47 421 Core 25 | 17 8 Treads 443 | 30 413 Legs . | . . Wheels . | . . Hover . | . . Flight . | . . Fastest Speed 50 | 50 160 Average Speed 167 | 127 172 Slowest Speed 850 | 160 850 Overloaded Moves . | . . Propulsion Burnouts . | . . Robots Hopped . | . . Potential Cave-ins . | . . Cave-ins Triggered . | . . Exploration Rate (%) 24 | 4 45 Regions Visited 1 Branch Regions . Pre-discovered Areas . | . . Known Exits Taken . | . . Unknown Exits Taken 1 | 1 . Scrap Searched . | . . Spaces Dug . | . . Terrain Destroyed 74 | . 74 Melee . | . . Projectile . | . . AOE 74 | . 74 Terrain Rammed . | . . Walls Destroyed . | . . Machines Disabled . | . . Actions | -11 -10 --------- Run | Yrd Mat Total 551 | 52 499 Wait . | . . Move 467 | 46 421 Hop . | . . Pick Up 13 | 1 12 Fast Attach 8 | 5 3 Attach 7 | . 7 Detach 3 | . 3 Swap . | . . Drop 8 | . 8 Fire 31 | . 31 Melee . | . . Ram . | . . Kick . | . . Crush 14 | . 14 Escape Stasis . | . . Rewire . | . . Trap . | . . Miscellaneous . | . . Route ------- -11/Scrapyard -10/Materials (discovered 1 exit: [*Mat]) History --------- Turn | Location | Event 16 | -11/Scrapyard | Discovered new exit (range 15) 68 | -11/Scrapyard | Entered Materials 313 | -10/Materials | Build established: Mutant 434 | -10/Materials | Discovered new exit (range 10) 822 | -10/Materials | Core integrity fell below 50% 879 | -10/Materials | Core integrity fell below 20% 915 | -10/Materials | Destroyed by G-47 Trooper with Particle Gun Last Messages --------------- 00802_ Dropped Lgt. Assault Rifle. 00804_ Acquired Particle Gun. 00809_ G-34 Mercenary destroyed. 00815_ Lgt. Treads destroyed. 00818_ Slammed into G-47 Trooper. 00819_ Lgt. Ion Engine destroyed. 00819_ Slammed into G-47 Trooper. 00826_ Slammed into U-05 Engineer. 00840_ Discarded Transport Network Coupler. 00842_ Destroyed Lgt. Nuclear Core. 00842_ Lgt. Treads destroyed. 00844_ Particle Gun destroyed. 00855_ R-06 Scavenger collects Aluminum Leg. 00859_ R-06 Scavenger collects Lgt. Armor Plating. 00860_ K-01 Serf collects debris. 00860_ Particle Gun destroyed. 00864_ K-01 Serf collects debris. 00868_ Critical hit (Burn: +37). 00886_ Hrd. Light Armor Plating destroyed. Map ----- +----------------------------------------------------+ | ?????????????????????????#""" #??????# | | ?????????????????????????# """ #??????# | | ?????????????????????????# """ #??????# | | ?????????????????????????# """ #??????# | | ?????????????????????????# #??????# | | ?????????????????????????###########??????# | | ??????????? ?????????????????????????????# | | ???????????? ??????????????????################+## | | ????????????# ??#?????????###### | | ????????????# ?#/????????# ## | | ????????????# # ???????# *!## | | ????????????# #######*!!## #########+### # | | ????????????# !!## #?# # =# | | ????????????# % %![[## #?# = | | ????????????# * [ ## #?# = | | ????????????# ## ###### #?# """"""" [ = | | ????????????# # # ##???# #?# """"""" | | ????????????# # ###### #?# """"""" | | ????????????# ! # #?# """"""" # | | ????????????# # #?????""""" # | | ????????????# # #??????###### # | | ????????????# ## # #g ???? | | ????????????# ##?# ######/#### ? | | ????????????#????##?????# ## ? | | ????????????????????????# ## ##########?####+# | | ????????????????????????#@ ## #???????????????? | | ????????????????????????# ## #???????????????? | | ????????????????????????#![=## #???????????????? | | ????????????????????????#!= ## #???????????????? | | ????????????????????????#!= ## #???????????????? | | ????????????????????????###### ???????????????? | | ?????????????????????????????# ???????????????? | | ?????????????????????????????# ???????????????? | | ?????????????????????????????? #???????????????? | | ?????????????????????????????????????????????????? | | ?????????????????????????????????????????????????? | | ?????????????????????????????????????????????????? | | ?????????????????????????????????????????????????? | | ?????????????????????????????????????????????????? | | ?????????????????????????????????????????????????? | | ?????????????????????????????????????????????????? | | ?????????????????????????????????????????????????? | | ?????????????????????????????????????????????????? | | ?????????????????????????????????????????????????? | | ?????????????????????????????????????????????????? | | ?????????????????????????????????????????????????? | | ?????????????????????????????????????????????????? | | ?????????????????????????????????????????????????? | | ?????????????????????????????????????????????????? | | ?????????????????????????????????????????????????? | +----------------------------------------------------+ Best States ------------- Heat Dissipation 25 Energy Generation 10 Energy Capacity 125 Matter Stores 102 Matter Capacity 300 Sight Range 16 Terrain Scan Density 10 Armor Coverage 150 Evasion (%) 40 Recoil Reduction 2 Item Schematics ----------------- None Robot Schematics ------------------ None Fabricated ------------ Nothing Repaired ---------- Nothing Studied --------- None Alien Tech Used ----------------- None Achievements -------------- None Challenges ------------ None Game ------ Seed ArcsightSalvageBeamcaster Manual? 0 Play Time 00:09:18 Cumulative 6.5 hours Start 2026.01.28 @ 15:32:02 End 2026.01.28 @ 15:39:51 Sessions 1 Manual Loads 0 Difficulty Rogue Special Mode None Game No. 11 Rogue 11 Adventurer 0 Explorer 0 Win Type - Total 0 Types 0/0/0/0/0/0/0/0/0/0 Lore% 1 Gallery% 13 Achievement% 8 Wizard Run 0 Options --------- Layout 2 ASCII 0 Keyboard 1 Movement Vi Keybinds 0 Fullscreen 1 Font 24/Smallcaps Map View 25x22 Zoom Use 100% Tactical HUD 1 Map Filters NONE Filters NONE Steam 1 RUN: 344420d6-4270-4213-9e75-77e2b8c45d20